[Event "Late Titled Tuesday Blitz February 8 2022"]
[White "Plotkin, Mark"]
[Black "Mamedyarov, Shakhriyar"]
[WhiteFideId "2611651"]
[BlackFideId "13401319"]
[WhiteElo "2178"]
[BlackElo "2769"]
[Result "1/2-1/2"]
[Round "05"]
[TimeControl "180+1"]
[Date "2022.02.08"]
[WhiteClock "0:00:10"]
[BlackClock "0:00:05"]

1. e4 {[%clk 0:03:00]}  c5 {[%clk 0:02:58]} 2. c3 {[%clk 0:03:00]}  d5 {[%clk 0:02:51]} 3. exd5 {[%clk 0:03:01]}  Qxd5 {[%clk 0:02:51]} 4. d4 {[%clk 0:02:58]}  Nc6 {[%clk 0:02:51]} 5. dxc5 {[%clk 0:02:56]}  Qxc5 {[%clk 0:02:48]} 6. Be3 {[%clk 0:02:55]}  Qa5 {[%clk 0:02:45]} 7. b4 {[%clk 0:02:55]}  Qc7 {[%clk 0:02:41]} 8. Nf3 {[%clk 0:02:54]}  Nf6 {[%clk 0:02:40]} 9. Nbd2 {[%clk 0:02:50]}  Nd5 {[%clk 0:02:37]} 10. Bg5 {[%clk 0:02:34]}  f6 {[%clk 0:02:21]} 11. Qb3 {[%clk 0:02:17]}  e6 {[%clk 0:02:12]} 12. Bh4 {[%clk 0:02:14]}  a5 {[%clk 0:02:10]} 13. b5 {[%clk 0:02:11]}  a4 {[%clk 0:02:10]} 14. Qc4 {[%clk 0:02:06]}  Ne5 {[%clk 0:01:55]} 15. Qxc7 {[%clk 0:02:04]}  Nxf3+ {[%clk 0:01:54]} 16. Nxf3 {[%clk 0:02:05]}  Nxc7 {[%clk 0:01:54]} 17. O-O-O {[%clk 0:01:47]}  e5 {[%clk 0:01:41]} 18. b6 {[%clk 0:01:40]}  Na6 {[%clk 0:01:20]} 19. Bc4 {[%clk 0:01:31]}  Bf5 {[%clk 0:01:06]} 20. Kb2 {[%clk 0:01:20]}  Be7 {[%clk 0:00:57]} 21. Rhe1 {[%clk 0:01:17]}  a3+ {[%clk 0:00:50]} 22. Kc1 {[%clk 0:01:13]}  Rc8 {[%clk 0:00:12]} 23. Nxe5 {[%clk 0:01:12]}  g5 {[%clk 0:00:10]} 24. Bxg5 {[%clk 0:00:42]}  fxg5 {[%clk 0:00:10]} 25. g4 {[%clk 0:00:34]}  Bxg4 {[%clk 0:00:07]} 26. Bb5+ {[%clk 0:00:32]}  Kf8 {[%clk 0:00:07]} 27. Nxg4 {[%clk 0:00:32]}  Rxc3+ {[%clk 0:00:08]} 28. Kd2 {[%clk 0:00:33]}  Rc5 {[%clk 0:00:07]} 29. Bd3 {[%clk 0:00:30]}  Nb4 {[%clk 0:00:06]} 30. Ne5 {[%clk 0:00:28]}  Nxd3 {[%clk 0:00:06]} 31. Kxd3 {[%clk 0:00:26]}  Kg7 {[%clk 0:00:05]} 32. Nd7 {[%clk 0:00:24]}  Rd5+ {[%clk 0:00:06]} 33. Ke4 {[%clk 0:00:16]}  Rxd1 {[%clk 0:00:06]} 34. Rxd1 {[%clk 0:00:17]}  Rc8 {[%clk 0:00:05]} 35. Kf5 {[%clk 0:00:15]}  Rc2 {[%clk 0:00:05]} 36. Ke6 {[%clk 0:00:15]}  Re2+ {[%clk 0:00:05]} 37. Ne5 {[%clk 0:00:14]}  Bc5 {[%clk 0:00:05]} 38. Rd7+ {[%clk 0:00:15]}  Kh6 {[%clk 0:00:05]} 39. Kf5 {[%clk 0:00:11]}  Rxf2+ {[%clk 0:00:05]} 40. Ke6 {[%clk 0:00:08]}  Re2 {[%clk 0:00:04]} 41. Kf5 {[%clk 0:00:09]}  Rf2+ {[%clk 0:00:05]} 42. Ke6 {[%clk 0:00:09]}  Re2 {[%clk 0:00:04]} 43. Kf5 {[%clk 0:00:10]}  Rf2+ {[%clk 0:00:05]} 1/2-1/2


[Site "https://www.chess.com"]

[Event "Late Titled Tuesday Blitz February 8 2022"]
[White "Postnikov, Daniil"]
[Black "Jaracz, Pawel"]
[WhiteFideId "4166329"]
[BlackFideId "1102222"]
[WhiteElo "2261"]
[BlackElo "2429"]
[Result "0-1"]
[Round "05"]
[TimeControl "180+1"]
[Date "2022.02.08"]
[WhiteClock "0:00:04"]
[BlackClock "0:00:18"]

1. e4 {[%clk 0:02:55]}  c5 {[%clk 0:02:56]} 2. Nf3 {[%clk 0:02:55]}  e6 {[%clk 0:02:57]} 3. g3 {[%clk 0:02:55]}  b6 {[%clk 0:02:54]} 4. Bg2 {[%clk 0:02:52]}  Bb7 {[%clk 0:02:55]} 5. Qe2 {[%clk 0:02:51]}  d6 {[%clk 0:02:54]} 6. O-O {[%clk 0:02:43]}  Be7 {[%clk 0:02:54]} 7. c3 {[%clk 0:02:36]}  Nf6 {[%clk 0:02:53]} 8. d3 {[%clk 0:02:36]}  O-O {[%clk 0:02:52]} 9. Re1 {[%clk 0:02:31]}  Nbd7 {[%clk 0:02:50]} 10. Nbd2 {[%clk 0:02:31]}  Rc8 {[%clk 0:02:50]} 11. h4 {[%clk 0:02:30]}  b5 {[%clk 0:02:48]} 12. Nf1 {[%clk 0:02:26]}  c4 {[%clk 0:02:36]} 13. Nd4 {[%clk 0:02:18]}  cxd3 {[%clk 0:02:30]} 14. Qxd3 {[%clk 0:02:17]}  Nc5 {[%clk 0:02:24]} 15. Qxb5 {[%clk 0:02:12]}  Ba6 {[%clk 0:02:19]} 16. Qb4 {[%clk 0:01:56]}  Nd3 {[%clk 0:02:03]} 17. Qa4 {[%clk 0:01:56]}  Nxe1 {[%clk 0:02:01]} 18. Qxa6 {[%clk 0:01:54]}  Nxg2 {[%clk 0:02:01]} 19. Kxg2 {[%clk 0:01:54]}  Nxe4 {[%clk 0:02:01]} 20. Qxa7 {[%clk 0:01:49]}  d5 {[%clk 0:02:00]} 21. Be3 {[%clk 0:01:37]}  Bc5 {[%clk 0:01:58]} 22. Qa4 {[%clk 0:01:36]}  Qf6 {[%clk 0:01:42]} 23. Nd2 {[%clk 0:00:59]}  e5 {[%clk 0:01:35]} 24. Nxe4 {[%clk 0:00:56]}  dxe4 {[%clk 0:01:34]} 25. Nc2 {[%clk 0:00:55]}  Qf3+ {[%clk 0:01:33]} 26. Kg1 {[%clk 0:00:54]}  Bxe3 {[%clk 0:01:31]} 27. Nxe3 {[%clk 0:00:54]}  Rcd8 {[%clk 0:01:28]} 28. Qc2 {[%clk 0:00:47]}  f5 {[%clk 0:01:27]} 29. a4 {[%clk 0:00:26]}  f4 {[%clk 0:01:26]} 30. Nf1 {[%clk 0:00:26]}  e3 {[%clk 0:01:14]} 31. fxe3 {[%clk 0:00:25]}  fxg3 {[%clk 0:01:13]} 32. a5 {[%clk 0:00:25]}  Rd6 {[%clk 0:01:04]} 33. Qg2 {[%clk 0:00:24]}  Qg4 {[%clk 0:01:00]} 34. a6 {[%clk 0:00:20]}  e4 {[%clk 0:00:40]} 35. a7 {[%clk 0:00:19]}  Ra8 {[%clk 0:00:35]} 36. Nxg3 {[%clk 0:00:16]}  Rd1+ {[%clk 0:00:34]} 37. Rxd1 {[%clk 0:00:14]}  Qxd1+ {[%clk 0:00:34]} 38. Kh2 {[%clk 0:00:14]}  Rxa7 {[%clk 0:00:34]} 39. Qxe4 {[%clk 0:00:13]}  Qd2+ {[%clk 0:00:31]} 40. Kh3 {[%clk 0:00:12]}  Qd7+ {[%clk 0:00:31]} 41. Kh2 {[%clk 0:00:11]}  Qf7 {[%clk 0:00:18]} 42. Qd4 {[%clk 0:00:05]}  Rd7 {[%clk 0:00:17]} 43. Qe4 {[%clk 0:00:04]}  g6 {[%clk 0:00:17]} 44. b4 {[%clk 0:00:04]}  Rd2+ {[%clk 0:00:16]} 45. Kh3 {[%clk 0:00:04]}  Qd7+ {[%clk 0:00:17]} 46. Qg4 {[%clk 0:00:04]}  Rh2+ {[%clk 0:00:17]} 47. Kxh2 {[%clk 0:00:04]}  Qxg4 {[%clk 0:00:18]} 0-1


[Site "https://www.chess.com"]

[Event "Late Titled Tuesday Blitz February 8 2022"]
[White "Pranav, V"]
[Black "Daggupati, Balaji"]
[WhiteFideId "25060783"]
[BlackFideId "2090759"]
[WhiteElo "2349"]
[BlackElo "2731"]
[Result "0-1"]
[Round "05"]
[TimeControl "180+1"]
[Date "2022.02.08"]
[WhiteClock "0:00:04"]
[BlackClock "0:00:07"]

1. e4 {[%clk 0:03:00]}  c5 {[%clk 0:02:59]} 2. Nf3 {[%clk 0:03:00]}  e6 {[%clk 0:02:59]} 3. b3 {[%clk 0:03:00]}  d6 {[%clk 0:02:56]} 4. Bb2 {[%clk 0:02:59]}  e5 {[%clk 0:02:57]} 5. g3 {[%clk 0:02:59]}  Nf6 {[%clk 0:02:56]} 6. Bg2 {[%clk 0:02:55]}  Be7 {[%clk 0:02:55]} 7. O-O {[%clk 0:02:55]}  O-O {[%clk 0:02:55]} 8. Re1 {[%clk 0:02:55]}  Nc6 {[%clk 0:02:53]} 9. h3 {[%clk 0:02:52]}  Ne8 {[%clk 0:02:48]} 10. c3 {[%clk 0:02:51]}  f5 {[%clk 0:02:49]} 11. exf5 {[%clk 0:02:40]}  Bxf5 {[%clk 0:02:50]} 12. d3 {[%clk 0:02:33]}  Qd7 {[%clk 0:02:46]} 13. g4 {[%clk 0:02:29]}  Bg6 {[%clk 0:02:44]} 14. Na3 {[%clk 0:02:20]}  Nc7 {[%clk 0:02:43]} 15. d4 {[%clk 0:01:58]}  cxd4 {[%clk 0:02:41]} 16. cxd4 {[%clk 0:01:58]}  e4 {[%clk 0:02:41]} 17. d5 {[%clk 0:01:58]}  exf3 {[%clk 0:02:24]} 18. dxc6 {[%clk 0:01:56]}  bxc6 {[%clk 0:02:25]} 19. Bxf3 {[%clk 0:01:54]}  Bf6 {[%clk 0:02:25]} 20. Bxf6 {[%clk 0:01:34]}  Rxf6 {[%clk 0:02:26]} 21. Bg2 {[%clk 0:01:34]}  Raf8 {[%clk 0:02:22]} 22. Re2 {[%clk 0:01:34]}  h5 {[%clk 0:02:04]} 23. g5 {[%clk 0:01:29]}  Rf5 {[%clk 0:01:59]} 24. Qd2 {[%clk 0:01:15]}  Ne6 {[%clk 0:01:51]} 25. Rae1 {[%clk 0:01:10]}  Nf4 {[%clk 0:01:30]} 26. Re7 {[%clk 0:01:09]}  Qxe7 {[%clk 0:01:16]} 27. Rxe7 {[%clk 0:01:06]}  Rxg5 {[%clk 0:01:16]} 28. Qd4 {[%clk 0:00:38]}  Rxg2+ {[%clk 0:01:06]} 29. Kh1 {[%clk 0:00:38]}  Bf7 {[%clk 0:00:55]} 30. Re4 {[%clk 0:00:25]}  Bd5 {[%clk 0:00:51]} 31. Nc2 {[%clk 0:00:11]}  Bxe4 {[%clk 0:00:29]} 32. Qxe4 {[%clk 0:00:11]}  Rxf2 {[%clk 0:00:29]} 33. Nd4 {[%clk 0:00:11]}  Kh8 {[%clk 0:00:22]} 34. Nf3 {[%clk 0:00:05]}  Nxh3 {[%clk 0:00:20]} 35. Nh4 {[%clk 0:00:05]}  Nf4 {[%clk 0:00:10]} 36. Qe7 {[%clk 0:00:03]}  Rf1+ {[%clk 0:00:10]} 37. Kh2 {[%clk 0:00:04]}  Nd5 {[%clk 0:00:10]} 38. Ng6+ {[%clk 0:00:03]}  Kg8 {[%clk 0:00:08]} 39. Qe6+ {[%clk 0:00:03]}  R8f7 {[%clk 0:00:08]} 40. Qxd6 {[%clk 0:00:02]}  R1f2+ {[%clk 0:00:08]} 41. Kg3 {[%clk 0:00:02]}  R2f6 {[%clk 0:00:08]} 42. Qd8+ {[%clk 0:00:02]}  Kh7 {[%clk 0:00:08]} 43. Ne5 {[%clk 0:00:03]}  Nf4 {[%clk 0:00:07]} 44. Nxf7 {[%clk 0:00:03]}  Rxf7 {[%clk 0:00:07]} 45. Qc8 {[%clk 0:00:03]}  Ne2+ {[%clk 0:00:07]} 46. Kg2 {[%clk 0:00:03]}  g6 {[%clk 0:00:07]} 47. Qxc6 {[%clk 0:00:03]}  Nf4+ {[%clk 0:00:08]} 48. Kh2 {[%clk 0:00:03]}  g5 {[%clk 0:00:07]} 49. Qc4 {[%clk 0:00:04]}  Kg6 {[%clk 0:00:07]} 50. b4 {[%clk 0:00:05]}  h4 {[%clk 0:00:06]} 51. a4 {[%clk 0:00:05]}  g4 {[%clk 0:00:07]} 52. Qc6+ {[%clk 0:00:05]}  Rf6 {[%clk 0:00:07]} 53. Qe4+ {[%clk 0:00:05]}  Kg5 {[%clk 0:00:07]} 54. Qe5+ {[%clk 0:00:05]}  Rf5 {[%clk 0:00:07]} 55. Qe7+ {[%clk 0:00:05]}  Rf6 {[%clk 0:00:07]} 56. Qg7+ {[%clk 0:00:05]}  Ng6 {[%clk 0:00:07]} 57. b5 {[%clk 0:00:04]}  g3+ {[%clk 0:00:07]} 58. Kh3 {[%clk 0:00:04]}  Rf2 {[%clk 0:00:07]} 0-1


[Site "https://www.chess.com"]

[Event "Late Titled Tuesday Blitz February 8 2022"]
[White "Prieto Aranguren, Alain"]
[Black "Romanchuk, Viktor"]
[WhiteFideId "2268906"]
[BlackFideId "14109271"]
[WhiteElo "2235"]
[BlackElo "2242"]
[Result "0-1"]
[Round "05"]
[TimeControl "180+1"]
[Date "2022.02.09"]
[WhiteClock "0:00:49"]
[BlackClock "0:00:17"]

1. d4 {[%clk 0:02:59]}  d5 {[%clk 0:02:59]} 2. c4 {[%clk 0:02:46]}  c6 {[%clk 0:02:58]} 3. Nf3 {[%clk 0:02:46]}  Nf6 {[%clk 0:02:58]} 4. Nc3 {[%clk 0:02:29]}  e6 {[%clk 0:02:57]} 5. Bg5 {[%clk 0:02:29]}  h6 {[%clk 0:02:56]} 6. Bh4 {[%clk 0:02:29]}  dxc4 {[%clk 0:02:55]} 7. e3 {[%clk 0:02:28]}  b5 {[%clk 0:02:55]} 8. Be2 {[%clk 0:02:28]}  Bb7 {[%clk 0:02:55]} 9. O-O {[%clk 0:02:28]}  Be7 {[%clk 0:02:54]} 10. Ne5 {[%clk 0:02:28]}  Nbd7 {[%clk 0:01:10]} 11. f4 {[%clk 0:02:27]}  O-O {[%clk 0:01:09]} 12. Bf3 {[%clk 0:02:27]}  Nd5 {[%clk 0:01:04]} 13. Bxe7 {[%clk 0:02:26]}  Qxe7 {[%clk 0:01:04]} 14. Qe2 {[%clk 0:02:17]}  a6 {[%clk 0:00:59]} 15. g3 {[%clk 0:02:09]}  c5 {[%clk 0:00:59]} 16. e4 {[%clk 0:02:05]}  cxd4 {[%clk 0:00:52]} 17. exd5 {[%clk 0:01:59]}  dxc3 {[%clk 0:00:52]} 18. d6 {[%clk 0:01:58]}  Qxd6 {[%clk 0:00:51]} 19. Bxb7 {[%clk 0:01:57]}  Qb6+ {[%clk 0:00:49]} 20. Qf2 {[%clk 0:01:49]}  Qxb7 {[%clk 0:00:49]} 21. bxc3 {[%clk 0:01:45]}  Rad8 {[%clk 0:00:47]} 22. Rad1 {[%clk 0:01:41]}  Nf6 {[%clk 0:00:33]} 23. Rd4 {[%clk 0:01:31]}  Rxd4 {[%clk 0:00:32]} 24. Qxd4 {[%clk 0:01:29]}  Qc7 {[%clk 0:00:26]} 25. Rd1 {[%clk 0:01:28]}  Rc8 {[%clk 0:00:24]} 26. g4 {[%clk 0:01:17]}  Nd5 {[%clk 0:00:23]} 27. g5 {[%clk 0:01:14]}  hxg5 {[%clk 0:00:20]} 28. fxg5 {[%clk 0:01:13]}  Qc5 {[%clk 0:00:20]} 29. g6 {[%clk 0:01:09]}  fxg6 {[%clk 0:00:20]} 30. Nxg6 {[%clk 0:01:08]}  Nxc3 {[%clk 0:00:20]} 31. Ne7+ {[%clk 0:00:57]}  Qxe7 {[%clk 0:00:18]} 32. Qxc3 {[%clk 0:00:56]}  Qg5+ {[%clk 0:00:17]} 33. Kh1 {[%clk 0:00:55]}  Rf8 {[%clk 0:00:18]} 34. Qe3 {[%clk 0:00:49]}  Qxe3 {[%clk 0:00:17]} 0-1


[Site "https://www.chess.com"]

[Event "Late Titled Tuesday Blitz February 8 2022"]
[White "Przybylski, Wojciech"]
[Black "Chabris, Christopher"]
[WhiteFideId "1117599"]
[BlackFideId "2005263"]
[WhiteElo "2133"]
[BlackElo "2306"]
[Result "1-0"]
[Round "05"]
[TimeControl "180+1"]
[Date "2022.02.09"]
[WhiteClock "0:00:25"]
[BlackClock "0:00:02"]

1. d4 {[%clk 0:03:00]}  d5 {[%clk 0:02:59]} 2. c4 {[%clk 0:02:59]}  c6 {[%clk 0:03:00]} 3. Nf3 {[%clk 0:02:59]}  Nf6 {[%clk 0:03:00]} 4. Nc3 {[%clk 0:02:58]}  e6 {[%clk 0:02:59]} 5. Bg5 {[%clk 0:02:57]}  dxc4 {[%clk 0:02:59]} 6. e4 {[%clk 0:02:56]}  b5 {[%clk 0:02:59]} 7. a3 {[%clk 0:02:52]}  Nbd7 {[%clk 0:02:53]} 8. g3 {[%clk 0:02:50]}  h6 {[%clk 0:02:52]} 9. Bf4 {[%clk 0:02:49]}  Bb7 {[%clk 0:02:44]} 10. Bg2 {[%clk 0:02:48]}  a6 {[%clk 0:02:41]} 11. O-O {[%clk 0:02:47]}  Be7 {[%clk 0:02:39]} 12. Re1 {[%clk 0:02:46]}  O-O {[%clk 0:02:37]} 13. Qd2 {[%clk 0:02:42]}  Nh5 {[%clk 0:02:20]} 14. Bxh6 {[%clk 0:02:36]}  gxh6 {[%clk 0:02:20]} 15. Qxh6 {[%clk 0:02:35]}  Ng7 {[%clk 0:02:14]} 16. e5 {[%clk 0:02:26]}  f5 {[%clk 0:01:55]} 17. Ne4 {[%clk 0:02:11]}  fxe4 {[%clk 0:01:33]} 18. Rxe4 {[%clk 0:02:11]}  c5 {[%clk 0:01:25]} 19. Rg4 {[%clk 0:02:09]}  Rf7 {[%clk 0:01:24]} 20. Nh4 {[%clk 0:01:53]}  Bxh4 {[%clk 0:01:03]} 21. Bxb7 {[%clk 0:01:46]}  Bg5 {[%clk 0:00:33]} 22. Rxg5 {[%clk 0:01:43]}  Ra7 {[%clk 0:00:26]} 23. Be4 {[%clk 0:01:41]}  Kf8 {[%clk 0:00:15]} 24. d5 {[%clk 0:01:36]}  Nxe5 {[%clk 0:00:08]} 25. Rxe5 {[%clk 0:01:25]}  Qf6 {[%clk 0:00:04]} 26. Qh8+ {[%clk 0:01:00]}  Ke7 {[%clk 0:00:04]} 27. d6+ {[%clk 0:01:01]}  Kd7 {[%clk 0:00:04]} 28. Bc6+ {[%clk 0:01:01]}  Kxd6 {[%clk 0:00:03]} 29. Rd1+ {[%clk 0:00:40]}  Kxc6 {[%clk 0:00:04]} 30. Re2 {[%clk 0:00:29]}  Rfd7 {[%clk 0:00:03]} 31. Rde1 {[%clk 0:00:29]}  Nf5 {[%clk 0:00:02]} 32. Qxf6 {[%clk 0:00:25]} 1-0


[Site "https://www.chess.com"]

[Event "Late Titled Tuesday Blitz February 8 2022"]
[White "Punin, Andrii"]
[Black "Jobava, Baadur"]
[WhiteFideId "14112639"]
[BlackFideId "13601520"]
[WhiteElo "2357"]
[BlackElo "2617"]
[Result "0-1"]
[Round "05"]
[TimeControl "180+1"]
[Date "2022.02.08"]
[WhiteClock "0:00:03"]
[BlackClock "0:01:32"]

1. e4 {[%clk 0:03:00]}  c6 {[%clk 0:02:53]} 2. Nc3 {[%clk 0:02:58]}  d5 {[%clk 0:02:53]} 3. Nf3 {[%clk 0:02:58]}  Bg4 {[%clk 0:02:53]} 4. h3 {[%clk 0:02:58]}  Bxf3 {[%clk 0:02:54]} 5. Qxf3 {[%clk 0:02:58]}  e6 {[%clk 0:02:54]} 6. Be2 {[%clk 0:02:58]}  Nd7 {[%clk 0:02:52]} 7. d4 {[%clk 0:02:57]}  g6 {[%clk 0:02:49]} 8. O-O {[%clk 0:02:50]}  h5 {[%clk 0:02:49]} 9. exd5 {[%clk 0:02:36]}  cxd5 {[%clk 0:02:48]} 10. Bb5 {[%clk 0:02:30]}  Bg7 {[%clk 0:02:44]} 11. Ne2 {[%clk 0:02:29]}  Ne7 {[%clk 0:02:41]} 12. c3 {[%clk 0:02:11]}  O-O {[%clk 0:02:35]} 13. Bf4 {[%clk 0:02:10]}  Nf6 {[%clk 0:02:31]} 14. Bd3 {[%clk 0:02:05]}  Nf5 {[%clk 0:02:23]} 15. Ng3 {[%clk 0:01:48]}  Re8 {[%clk 0:02:18]} 16. Be5 {[%clk 0:01:46]}  Nh4 {[%clk 0:02:08]} 17. Qf4 {[%clk 0:01:36]}  Nd7 {[%clk 0:02:08]} 18. Bxg7 {[%clk 0:01:32]}  Kxg7 {[%clk 0:02:09]} 19. Rae1 {[%clk 0:01:29]}  Qf6 {[%clk 0:02:09]} 20. Qd2 {[%clk 0:01:08]}  e5 {[%clk 0:02:04]} 21. dxe5 {[%clk 0:01:05]}  Nxe5 {[%clk 0:02:04]} 22. Be2 {[%clk 0:01:00]}  Rad8 {[%clk 0:02:04]} 23. Kh1 {[%clk 0:00:51]}  Nc4 {[%clk 0:01:54]} 24. Bxc4 {[%clk 0:00:24]}  dxc4 {[%clk 0:01:55]} 25. Qc2 {[%clk 0:00:24]}  Qc6 {[%clk 0:01:43]} 26. f3 {[%clk 0:00:17]}  Qc7 {[%clk 0:01:43]} 27. Ne4 {[%clk 0:00:07]}  Nf5 {[%clk 0:01:43]} 28. Qf2 {[%clk 0:00:01]}  b6 {[%clk 0:01:43]} 29. Kg1 {[%clk 0:00:01]}  h4 {[%clk 0:01:42]} 30. Re2 {[%clk 0:00:01]}  Ng3 {[%clk 0:01:36]} 31. Rfe1 {[%clk 0:00:02]}  Nxe2+ {[%clk 0:01:34]} 32. Rxe2 {[%clk 0:00:02]}  Rd1+ {[%clk 0:01:33]} 33. Re1 {[%clk 0:00:02]}  Rxe1+ {[%clk 0:01:33]} 34. Qxe1 {[%clk 0:00:03]}  f5 {[%clk 0:01:32]} 0-1


[Site "https://www.chess.com"]

[Event "Late Titled Tuesday Blitz February 8 2022"]
[White "Reprintsev, Alexander"]
[Black "Garcia Martin, Marta"]
[WhiteFideId "14100541"]
[BlackFideId "32084030"]
[WhiteElo "2126"]
[BlackElo "2102"]
[Result "0-1"]
[Round "05"]
[TimeControl "180+1"]
[Date "2022.02.09"]
[WhiteClock "0:00:09"]
[BlackClock "0:01:02"]

1. e4 {[%clk 0:02:58]}  c5 {[%clk 0:02:51]} 2. b3 {[%clk 0:02:57]}  Nc6 {[%clk 0:02:51]} 3. Bb2 {[%clk 0:02:57]}  e5 {[%clk 0:02:51]} 4. f4 {[%clk 0:02:56]}  d6 {[%clk 0:02:51]} 5. Qf3 {[%clk 0:02:56]}  Nf6 {[%clk 0:02:42]} 6. Bb5 {[%clk 0:02:55]}  Bg4 {[%clk 0:02:35]} 7. Qe3 {[%clk 0:02:54]}  Bd7 {[%clk 0:02:33]} 8. Nf3 {[%clk 0:02:34]}  Ng4 {[%clk 0:02:24]} 9. Qe2 {[%clk 0:02:34]}  exf4 {[%clk 0:02:24]} 10. Nc3 {[%clk 0:02:30]}  Nge5 {[%clk 0:02:08]} 11. Nd5 {[%clk 0:02:28]}  Be7 {[%clk 0:01:57]} 12. Nxf4 {[%clk 0:02:23]}  Nxf3+ {[%clk 0:01:51]} 13. Qxf3 {[%clk 0:02:21]}  Bf6 {[%clk 0:01:49]} 14. Bxf6 {[%clk 0:02:16]}  Qxf6 {[%clk 0:01:50]} 15. O-O {[%clk 0:02:12]}  O-O {[%clk 0:01:47]} 16. Nd5 {[%clk 0:02:01]}  Qd4+ {[%clk 0:01:38]} 17. Qf2 {[%clk 0:00:42]}  Qxe4 {[%clk 0:01:26]} 18. c4 {[%clk 0:00:36]}  Rae8 {[%clk 0:01:18]} 19. Rae1 {[%clk 0:00:34]}  Qd4 {[%clk 0:01:17]} 20. Qxd4 {[%clk 0:00:33]}  cxd4 {[%clk 0:01:15]} 21. Bxc6 {[%clk 0:00:13]}  bxc6 {[%clk 0:01:16]} 22. Ne7+ {[%clk 0:00:13]}  Kh8 {[%clk 0:01:17]} 23. h3 {[%clk 0:00:11]}  f5 {[%clk 0:01:09]} 24. g4 {[%clk 0:00:09]}  fxg4 {[%clk 0:01:07]} 25. Rxf8+ {[%clk 0:00:08]}  Rxf8 {[%clk 0:01:08]} 26. hxg4 {[%clk 0:00:08]}  Re8 {[%clk 0:01:03]} 27. Kf2 {[%clk 0:00:09]}  g6 {[%clk 0:01:02]} 0-1


[Site "https://www.chess.com"]

[Event "Late Titled Tuesday Blitz February 8 2022"]
[White "Riehle, Marco"]
[Black "Zarubitski, Viachaslau"]
[WhiteFideId "12904392"]
[BlackFideId "13509373"]
[WhiteElo "2462"]
[BlackElo "2325"]
[Result "1-0"]
[Round "05"]
[TimeControl "180+1"]
[Date "2022.02.08"]
[WhiteClock "0:00:36"]
[BlackClock "0:00:02"]

1. e4 {[%clk 0:03:00]}  d6 {[%clk 0:02:51]} 2. d4 {[%clk 0:03:00]}  Nf6 {[%clk 0:02:51]} 3. f3 {[%clk 0:02:59]}  Nbd7 {[%clk 0:02:49]} 4. c4 {[%clk 0:02:46]}  e5 {[%clk 0:02:46]} 5. d5 {[%clk 0:02:45]}  c6 {[%clk 0:02:43]} 6. Nc3 {[%clk 0:02:44]}  cxd5 {[%clk 0:02:41]} 7. cxd5 {[%clk 0:02:45]}  h5 {[%clk 0:02:33]} 8. Bd3 {[%clk 0:02:39]}  h4 {[%clk 0:02:32]} 9. Be3 {[%clk 0:02:35]}  Nh5 {[%clk 0:02:31]} 10. Nge2 {[%clk 0:02:34]}  a6 {[%clk 0:02:24]} 11. Qd2 {[%clk 0:02:26]}  b5 {[%clk 0:02:13]} 12. O-O-O {[%clk 0:02:19]}  Nc5 {[%clk 0:02:02]} 13. Bc2 {[%clk 0:02:10]}  Qc7 {[%clk 0:01:50]} 14. Kb1 {[%clk 0:02:05]}  Bd7 {[%clk 0:01:49]} 15. g4 {[%clk 0:02:01]}  Nf6 {[%clk 0:01:43]} 16. Rc1 {[%clk 0:01:59]}  Be7 {[%clk 0:01:38]} 17. Rhg1 {[%clk 0:01:49]}  a5 {[%clk 0:01:26]} 18. g5 {[%clk 0:01:44]}  Nh5 {[%clk 0:01:24]} 19. g6 {[%clk 0:01:43]}  f6 {[%clk 0:01:22]} 20. Bd1 {[%clk 0:01:38]}  Qb7 {[%clk 0:01:17]} 21. Bxc5 {[%clk 0:01:35]}  dxc5 {[%clk 0:01:17]} 22. d6 {[%clk 0:01:35]}  Bd8 {[%clk 0:01:14]} 23. Nd5 {[%clk 0:01:31]}  c4 {[%clk 0:01:10]} 24. f4 {[%clk 0:01:28]}  Nxf4 {[%clk 0:00:59]} 25. Nexf4 {[%clk 0:01:29]}  exf4 {[%clk 0:00:59]} 26. Qxf4 {[%clk 0:01:23]}  Be6 {[%clk 0:00:53]} 27. Bf3 {[%clk 0:01:16]}  Ra6 {[%clk 0:00:38]} 28. Rcd1 {[%clk 0:01:15]}  b4 {[%clk 0:00:14]} 29. Nc7+ {[%clk 0:01:08]}  Bxc7 {[%clk 0:00:13]} 30. dxc7 {[%clk 0:01:08]}  Ke7 {[%clk 0:00:03]} 31. e5 {[%clk 0:01:04]}  Qb5 {[%clk 0:00:03]} 32. exf6+ {[%clk 0:01:04]}  gxf6 {[%clk 0:00:04]} 33. g7 {[%clk 0:01:00]}  Rg8 {[%clk 0:00:04]} 34. Qd4 {[%clk 0:00:48]}  c3 {[%clk 0:00:03]} 35. Qd8+ {[%clk 0:00:44]}  Kf7 {[%clk 0:00:02]} 36. Bh5+ {[%clk 0:00:37]}  Qxh5 {[%clk 0:00:02]} 37. Rd7+ {[%clk 0:00:36]} 1-0


[Site "https://www.chess.com"]

[Event "Late Titled Tuesday Blitz February 8 2022"]
[White "Rudzinska, Michalina"]
[Black "Rudykh, Stepan"]
[WhiteFideId "1172883"]
[BlackFideId "4180321"]
[WhiteElo "1904"]
[BlackElo "2141"]
[Result "1-0"]
[Round "05"]
[TimeControl "180+1"]
[Date "2022.02.09"]
[WhiteClock "0:00:58"]
[BlackClock "0:00:01"]

1. e4 {[%clk 0:01:52]}  e6 {[%clk 0:02:59]} 2. d4 {[%clk 0:01:52]}  d5 {[%clk 0:03:00]} 3. Nd2 {[%clk 0:01:49]}  Nf6 {[%clk 0:02:59]} 4. e5 {[%clk 0:01:48]}  Nfd7 {[%clk 0:03:00]} 5. Bd3 {[%clk 0:01:49]}  c5 {[%clk 0:03:01]} 6. c3 {[%clk 0:01:49]}  Nc6 {[%clk 0:03:01]} 7. Ne2 {[%clk 0:01:50]}  cxd4 {[%clk 0:03:02]} 8. cxd4 {[%clk 0:01:51]}  f6 {[%clk 0:03:02]} 9. exf6 {[%clk 0:01:52]}  Nxf6 {[%clk 0:03:03]} 10. Nf3 {[%clk 0:01:52]}  Bd6 {[%clk 0:03:03]} 11. O-O {[%clk 0:01:53]}  Qc7 {[%clk 0:03:03]} 12. g3 {[%clk 0:01:53]}  O-O {[%clk 0:02:58]} 13. Bf4 {[%clk 0:01:53]}  Bd7 {[%clk 0:02:45]} 14. Bxd6 {[%clk 0:01:48]}  Qxd6 {[%clk 0:02:46]} 15. Nc3 {[%clk 0:01:49]}  a6 {[%clk 0:02:38]} 16. Re1 {[%clk 0:01:49]}  Be8 {[%clk 0:02:20]} 17. Ne5 {[%clk 0:01:46]}  Nxd4 {[%clk 0:02:03]} 18. Bxh7+ {[%clk 0:01:46]}  Nxh7 {[%clk 0:01:58]} 19. Qxd4 {[%clk 0:01:47]}  Rc8 {[%clk 0:01:32]} 20. Rad1 {[%clk 0:01:39]}  Bh5 {[%clk 0:01:21]} 21. g4 {[%clk 0:01:33]}  Be8 {[%clk 0:01:16]} 22. Re3 {[%clk 0:01:31]}  Qc5 {[%clk 0:01:07]} 23. Qxc5 {[%clk 0:01:29]}  Rxc5 {[%clk 0:01:07]} 24. Nd3 {[%clk 0:01:28]}  Rc4 {[%clk 0:01:00]} 25. Ne5 {[%clk 0:01:28]}  Rcf4 {[%clk 0:00:56]} 26. f3 {[%clk 0:01:28]}  Ng5 {[%clk 0:00:52]} 27. Ne2 {[%clk 0:01:22]}  Nxf3+ {[%clk 0:00:48]} 28. Kg2 {[%clk 0:01:14]}  Nh4+ {[%clk 0:00:39]} 29. Kg3 {[%clk 0:01:14]}  g5 {[%clk 0:00:26]} 30. Nxf4 {[%clk 0:01:04]}  Rxf4 {[%clk 0:00:27]} 31. Nf3 {[%clk 0:01:00]}  Nxf3 {[%clk 0:00:06]} 32. Rxf3 {[%clk 0:01:00]}  Rxf3+ {[%clk 0:00:03]} 33. Kxf3 {[%clk 0:01:01]}  Kf7 {[%clk 0:00:03]} 34. Ke3 {[%clk 0:00:59]}  Kf6 {[%clk 0:00:02]} 35. Kd4 {[%clk 0:00:59]}  Bb5 {[%clk 0:00:01]} 36. Rd2 {[%clk 0:00:58]} 1-0


[Site "https://www.chess.com"]